Cogmind - Beta 13 @@@ ROGUE MODE // 2024.05.30 @ 19:19:41 Player: Bace Troncons Result: Destroyed by AS-164(R) with Subdweller Laser Performance ------------- Evolutions (0) 0 Regions Visited (2) 400 Robots Destroyed (29) 145 Value Destroyed (762) 762 Prototype IDs (4) 80 Alien Tech Used (0) 0 Bonus (0) 0 TOTAL SCORE: 1387 Bonus ------- None Cogmind --------- Core Integrity 0/250 Matter 180/300 Energy 100/100 System Corruption 0% Temperature Cool (6) Movement Treading (560) Ox4 Location -10/Subcaves Parts ------- > --- POWER (1) -------- Subdweller Power Source > --- PROPULSION (2) --- Spiked Treads Subdweller Monowheel > --- UTILITY (2) ------ Huge Storage Unit Core Shielding > --- WEAPON (2) ------- Battle Cannon Battle Cannon > --- INVENTORY (25) --- Subdweller Monowheel Machine Analyzer Core Shielding Core Shielding Weapon Shielding Backup Plating I Backup Plating I Backup Plating I Light Armor Plating Hacking Suite Hacking Suite Recalibrator Autogun Autogun Barrage Gun Barrage Gun Light Cannon Battle Cannon Datajack Makeshift Sword Peak State ------------ > --- POWER ------------ Subdweller Power Source > --- PROPULSION ------- Spiked Treads Subdweller Monowheel > --- UTILITY ---------- Huge Storage Unit Core Shielding > --- WEAPON ----------- Battle Cannon Battle Cannon > --- INVENTORY -------- Subdweller Power Source Subdweller Monowheel Machine Analyzer Core Shielding Core Shielding Weapon Shielding Backup Plating I Backup Plating I Backup Plating I Light Armor Plating Hacking Suite Hacking Suite Recalibrator Autogun Autogun Barrage Gun Barrage Gun Light Cannon Datajack Makeshift Sword [Rating: 16] Favorites ----------- Power Ion Engine Engine Ion Engine Propulsion Light Treads Treads Light Treads Leg Aluminum Leg Wheel Subdweller Monowheel Utility Huge Storage Unit Storage Huge Storage Unit Protection Core Shielding Weapon Battle Cannon Energy Gun EM Pulse Gun Ballistic Gun Light Assault Rifle Ballistic Cannon Battle Cannon Slashing Weapon Mining Claw Build | -11 -10 -10 ------- Run | Yrd Mat Sub Slots Evolved . | . . . Power . | . . . Propulsion . | . . . Utility . | . . . Weapon . | . . . Parts Attached 29 | 7 7 15 Power 6 | 1 . 5 Engine 6 | 1 . 5 Core . | . . . Reactor . | . . . Propulsion 9 | 3 1 5 Treads 5 | 2 1 2 Leg 1 | 1 . . Wheel 3 | . . 3 Hover . | . . . Flight . | . . . Utility 3 | 1 2 . Device . | . . . Storage 2 | 1 1 . Processor . | . . . Hackware . | . . . Protection 1 | . 1 . Artifact . | . . . Weapon 11 | 2 4 5 Energy Gun 1 | 1 . . Energy Cannon . | . . . Ballistic Gun 5 | 1 3 1 Ballistic Cannon 4 | . . 4 Launcher . | . . . Special Weapon . | . . . Impact Weapon . | . . . Slashing Weapon 1 | . 1 . Piercing Weapon . | . . . Special Melee Weapon . | . . . Unidentified Prototypes . | . . . Parts Lost 7 | . 1 6 Power 3 | . . 3 Propulsion 4 | . 1 3 Utility . | . . . Weapon . | . . . Highest Loss Streak 2 | . 1 2 To Critical Strikes . | . . . Average Slot Usage (%) 93 | . 89 96 Engine 12 | . 14 11 Treads 17 | . 21 14 Wheel 7 | . . 12 Storage 14 | . 14 14 Protection 12 | . 10 14 Energy Gun 1 | . 2 . Ballistic Gun 11 | . 21 4 Ballistic Cannon 13 | . . 23 Slashing Weapon 1 | . 3 . Naked Turns . | . . . Heaviest Build 92 | 13 92 92 Greatest Support 40 | 40 40 40 Greatest Overweight (x) 30 | 3 4 30 Average Overweight (x) 3 | . 2 3 Largest Inventory Capacity 25 | 8 25 25 Average Capacity 24 | 7 24 25 Most Carried 20 | 3 20 20 Average Carried 16 | 2 12 18 Final Capacity 25 | 8 25 25 Final Carried 20 | 3 18 20 Class Distribution -------------------- 61% | Mutant 38% | Derelict-Mutant Dominant Class ---------------- Mutant | -10/Materials Derelict-Mutant | -10/Subcaves Resources | -11 -10 -10 ----------- Run | Yrd Mat Sub Matter Collected 1002 | 221 226 555 Remotely . | . . . Salvage Created 900 | . 532 368 Parts 53 | . 29 24 Haulers Intercepted 2 | . 2 . Recyclers Shooed . | . . . Parts Field Recycled . | . . . Retrieved Matter . | . . . Parts Self-Destructed 4 | . . 4 Prevented . | . . . Kills | -11 -10 -10 ------- Run | Yrd Mat Sub Combat Hostiles Destroyed 21 | . 10 11 Guns 12 | . 10 2 Cannons 9 | . . 9 Classes Destroyed 8 | . 7 1 Tunneler 1 | . 1 . Hauler 2 | . 2 . Mechanic 1 | . 1 . Operator 2 | . 2 . Watcher 2 | . 2 . Swarmer 5 | . 5 . Grunt 7 | . 5 2 Subdweller 9 | . . 9 Best Kill Streak 2 | . 2 2 Combat Bots Only 2 | . 2 2 Max Kills in Single Turn 1 | . 1 1 Gunslinging . | . . . Exploded . | . . . Melee . | . . . Uniques/NPCs Destroyed . | . . . Combat | -11 -10 -10 -------- Run | Yrd Mat Sub Hostile Shots Fired 137 | . 80 57 Missed 35 | . 22 13 Damage Taken 1603 | . 617 986 Core 264 | . 114 150 Absorbed by Shields . | . . . Redirected to Shielding 48 | . 17 31 Core Remaining (%) 100 | 100 . . Volleys Fired 131 | . 77 54 Largest 2 | . 2 2 Hottest 78 | . 60 78 Shots Fired 259 | . 154 105 Gun 173 | . 154 19 Cannon 86 | . . 86 Launcher . | . . . Special . | . . . Kinetic 246 | . 141 105 Thermal . | . . . Explosive . | . . . Electromagnetic 13 | . 13 . Robot Hit Streak 15 | . 15 15 Robot Miss Streak 7 | . 7 2 Penetration Max . | . . . Secondary Targets 2 | . 2 . Max Gunslinging Chain 1 | . 1 . Shots Hit Robots 141 | . 93 48 Core Hits 62 | . 42 20 Critical Kills . | . . . Critical Parts Destroyed 1 | . 1 . Critical Strikes 2 | . 1 1 Destroy 1 | . 1 . Blast 1 | . . 1 Melee Attacks 2 | . 2 . Impact . | . . . Slashing 2 | . 2 . Piercing . | . . . Sneak Attacks . | . . . Combat Hostiles . | . . . Follow-up Attacks . | . . . Damage Inflicted 1678 | . 824 854 Guns 945 | . 743 202 Cannons 652 | . . 652 Explosions 81 | . 81 . Melee . | . . . Ramming . | . . . Kinetic 1501 | . 647 854 Thermal 81 | . 81 . Explosive . | . . . Electromagnetic 96 | . 96 . Impact . | . . . Slashing . | . . . Piercing . | . . . Highest Corruption . | . . . Average Corruption . | . . . Corruption Purged . | . . . Corruption Blocked . | . . . Overload Shots . | . . . Overflow Damage . | . . . Projectiles . | . . . Explosions . | . . . Melee . | . . . Knockbacks 9 | . . 9 Impact . | . . . Kinetic 9 | . . 9 Secondary . | . . . Self-Inflicted Damage . | . . . Shots . | . . . Rammed . | . . . Targets Rammed . | . . . Kicked . | . . . Crushed . | . . . Highest Temperature 251 | . 58 251 Average Temperature 29 | . 16 117 Received Heat Transfer 706 | . 237 469 Effects 1 | . . 1 Interference 1 | . . 1 Siege Activations . | . . . Robots Corrupted . | . . . Combat Hostiles . | . . . Parts Fried . | . . . Impact Corruptions . | . . . Robots Melted . | . . . Combat Hostiles . | . . . Parts Melted 1 | . 1 . Heat Transferred 100 | . 100 . Parts Sabotaged . | . . . Parts Stolen . | . . . Parts Stripped . | . . . Power Chain Reactions 1 | . 1 . Alert | -11 -10 -10 ------- Run | Yrd Mat Sub Peak Influence 135 | . 135 . Initial . | . . . Average 35 | . 36 . Maximum Alert Level . | . . . Low Security (%) 100 | 100 100 . Level 1 . | . . . Level 2 . | . . . Level 3 . | . . . Level 4 . | . . . Level 5 . | . . . High Security . | . . . Max Security . | . . . Squads Dispatched 2 | . 2 . Investigation . | . . . Extermination . | . . . Reinforcement 2 | . 2 . Assault . | . . . Garrison . | . . . Intercept . | . . . Searches Triggered . | . . . Construction Impeded . | . . . Haulers Reinforced . | . . . Active Scanning Responses . | . . . Cargo Convoy Interrupts . | . . . Stealth | -11 -10 -10 --------- Run | Yrd Mat Sub Distress Signals 1 | . 1 . Communications Jammed . | . . . Distress Signals . | . . . Times Spotted 41 | . 28 13 Peak Tracking Total 4 | . 4 2 Tactical Retreats 2 | . 2 . Traps | -11 -10 -10 ------- Run | Yrd Mat Sub Traps Triggered 1 | . . 1 Indirectly . | . . . Trap Hack Attempts . | . . . Triggered . | . . . Disarmed . | . . . Reprogrammed . | . . . Reused . | . . . Traps Extracted . | . . . Installed . | . . . Triggered . | . . . Machines | -11 -10 -10 ---------- Run | Yrd Mat Sub Machines Disabled . | . . . Max in Single Turn . | . . . Machines Repaired . | . . . Machines Dismantled . | . . . Machines Sabotaged . | . . . Overloaded Fab Kills . | . . . Hacking | -11 -10 -10 --------- Run | Yrd Mat Sub Machines Accessed 7 | . 6 1 Terminals 5 | . 5 . Fabricators . | . . . Repair Stations . | . . . Recycling Units 1 | . 1 . Scanalyzers . | . . . Garrison Access . | . . . Total Hacks 16 | . 14 2 Successful 9 | . 7 2 Failed 7 | . 7 . Catastrophic 2 | . 2 . Database Lockouts . | . . . Manual 1 | . 1 . Terminals 13 | . 13 . Fabricators . | . . . Repair Stations . | . . . Recycling Units 1 | . 1 . Scanalyzers . | . . . Garrison Access . | . . . Terminal Hacks 8 | . 6 2 Record 2 | . . 2 Prototype ID Bank 2 | . 2 . Branch Access Points 1 | . 1 . Surveillance Status 1 | . 1 . Zone Layout 2 | . 2 . Fabricator Hacks . | . . . Repair Station Hacks . | . . . Recycling Unit Hacks 1 | . 1 . Retrieve Components 1 | . 1 . Scanalyzer . | . . . Garrison Access Hacks . | . . . Unauthorized Hacks . | . . . Terminals . | . . . Fabricators . | . . . Repair Stations . | . . . Recycling Units . | . . . Scanalyzers . | . . . Garrison Access . | . . . Data Cores Recovered . | . . . Used . | . . . Hacking Detections 5 | . 5 . Full Trace Events 2 | . 2 . Feedback Events . | . . . Feedback Blocked . | . . . Robot Schematics Acquired . | . . . Robots Built . | . . . Authchips . | . . . Time . | . . . Total Robot Build Rating . | . . . Part Schematics Acquired . | . . . Parts Built . | . . . Authchips . | . . . Time . | . . . Total Part Build Rating . | . . . Parts Repaired . | . . . Time . | . . . Parts Recycled . | . . . Recycled Matter . | . . . Retrieved Matter . | . . . Retrieved Components 10 | . 10 . Parts Scanalyzed . | . . . Part Schematics Acquired . | . . . Parts Damaged . | . . . Bothacking | -11 -10 -10 ------------ Run | Yrd Mat Sub Used RIF Installer . | . . . Robots Hacked . | . . . Non-combat . | . . . Combat . | . . . Robot Hacks Applied . | . . . Relay Couplers Released . | . . . Fabnet Peak Effective % . | . . . Robots Rewired . | . . . Allies Hacked . | . . . Hacks Repelled . | . . . Allies | -11 -10 -10 -------- Run | Yrd Mat Sub Total Allies . | . . . Largest Group . | . . . Highest-Rated Group . | . . . Highest-Rated Ally . | . . . Total Orders . | . . . Ally Attacks . | . . . Total Damage . | . . . Kills . | . . . Allies Corrupted . | . . . Allies Melted . | . . . Intel | -11 -10 -10 ------- Run | Yrd Mat Sub Robot Analysis Total . | . . . Derelict Logs Recovered 1 | . . 1 Drone Launches . | . . . Drone Recoveries . | . . . Exploration | -11 -10 -10 ------------- Run | Yrd Mat Sub Turns Passed 6091 | 92 2543 3456 Spaces Moved 1235 | 51 559 625 Core 21 | 19 . 2 Treads 1191 | 32 559 600 Legs . | . . . Wheels 23 | . . 23 Hover . | . . . Flight . | . . . Fastest Speed 50 | 50 160 130 Average Speed 438 | 156 379 514 Slowest Speed 1550 | 200 480 1550 Overloaded Moves . | . . . Propulsion Burnouts . | . . . Robots Hopped . | . . . Cave-ins Triggered . | . . . Exploration Rate (%) 46 | 5 94 39 Regions Visited 2 Branch Regions 1 Pre-discovered Areas 1 | . . 1 Known Exits Taken . | . . . Unknown Exits Taken 2 | 1 1 . Scrap Searched 18 | . . 18 Spaces Dug 3 | . 2 1 Terrain Destroyed 3 | . 2 1 Melee 2 | . 2 . Projectile 1 | . . 1 AOE . | . . . Terrain Rammed . | . . . Walls Destroyed . | . . . Machines Disabled . | . . . Actions | -11 -10 -10 --------- Run | Yrd Mat Sub Total 1677 | 60 857 760 Wait 239 | . 187 52 Move 1233 | 50 558 625 Hop . | . . . Pick Up 24 | 2 17 5 Fast Attach 18 | 7 4 7 Attach 4 | . . 4 Detach 8 | 1 3 4 Swap 7 | . 3 4 Drop 11 | . 6 5 Fire 131 | . 77 54 Melee 2 | . 2 . Ram . | . . . Kick . | . . . Crush . | . . . Escape Stasis . | . . . Rewire . | . . . Trap . | . . . Miscellaneous . | . . . Route ------- -11/Scrapyard -10/Materials (discovered 5 exits: [*Mat x3] / *Min / *Sub) -10/Subcaves (discovered 1 exit: [*Mat]) History --------- Turn | Location | Event 2 | -11/Scrapyard | Met Revision 17 62 | -11/Scrapyard | Discovered new exit (range 15) 93 | -11/Scrapyard | Entered Materials 318 | -10/Materials | Build established: Mutant 672 | -10/Materials | Discovered new exit (range 9) 980 | -10/Materials | Identified exit to Mines 1148 | -10/Materials | Discovered new exit (range 4) 1675 | -10/Materials | Discovered new exit (range 9) 2264 | -10/Materials | Discovered new exit (range 11) 2603 | -10/Materials | Discovered new exit (range 8) 2636 | -10/Materials | Entered Subcaves 3059 | -10/Subcaves | Core integrity fell below 50% 4062 | -10/Subcaves | Build established: Derelict-Mutant 4340 | -10/Subcaves | Shifting Twisted Machinery released Mak. Shrapnel Gun 4992 | -10/Subcaves | Core integrity fell below 20% 5281 | -10/Subcaves | Disturbed a concealed Subdweller 5399 | -10/Subcaves | Discovered new exit (range 13) 5748 | -10/Subcaves | Visited Clippyterm 5810 | -10/Subcaves | Learned location of Storage (-8) 6072 | -10/Subcaves | Shifting Twisted Machinery released Battle Cannon 6092 | -10/Subcaves | Destroyed by AS-164(R) with Subdweller Laser Last Messages --------------- Cannon. 05635_ Sub. Power Source shoots sparks and powers down. 05748_ The door opens automatically. 05765_ Connecting with Clippyterm... 05765_ Current location identified: Subcaves >>Record "Early Bird" It looks like you're searching for a worm, right? Don't bother with early when it comes to the Lifeworm, it's never early, but by some measures it might be just in time... >>Record! "Bogan" It looks like you're interested in the dark side, V4-D3R would be pleased, though I don't think they're in the habit of teaching apprentices. 05810_ Acquired derelict log, extracted data. World map updated: -8/Storage. Battle Cannon falls loose from the Twisted Machinery. Map ----- +----------------------------------------------------+ | ?????????????????????????????????????????????????? | | ?????????????????????????????????????????????????? | | ?????????????????????????????????????????????????? | | ?????????????????????????????????????????????????? | | ?????????????????????????????????????????????????? | | ?????????????????????????????????????????????????? | | ?????????????????????????????????????????????????? | | ?????????????????????????????????????????????????? | | ?????????????????????????????????????????????????? | | ?????????????????????????????????????????????????? | | ?????????????????????????????????????????????????? | | ?????????????????? ?????????????????????????????? | | ?????????????????? ##???????????????????????????? | | ????????##?###????? ### ????????????????????????? | | ???????## ## #???? ?????????????????????????? | | ???????# ##??## ??????????????????????????? | | ???????# #?## ##?????????????????????????? | | ???????# #?# ####??????????????????????? | | ???????# ### ## ##??##?## ?????????????? | | ???????# #? ### # ??????????????? | | ???##### #?# "" ???????????????? | | ???# ### "" ?????????????????? | | ???# ## #???????????????????? | | #### ## "#???????????????????? | | ## ""#???????????????????? | | #### ""@"""##??????????????????? | | # #??#####" """##?????????????????? | | ??### ## #??????##RR"" #?????????????????? | | ??### ## ## ##???????#"""" #????????????????? | | ### #####????????""" " #????????????????? | | #????????????"""### #???????????????? | | ##???????????""] #??? ???????????????? | | ## ##???????????? "" #????????????????????? | | ########????????????? "" #????????????????????? | | ##???????????????????????"#????????????????????? | | ##????????????????????????"?????????????????????? | | ##???????????????????????????????????????????????? | | #????????????????????????????????????????????????? | | ?????????????????????????????????????????????????? | | #????????????????????????????????????????????????? | | ???????????????????????????????????????????????? | | ??????????????????????????????????????????????? | | ?????????????????????????????????????????????? | | ## ????????????????????????????????????????????? | | ?? ???????????????????????????????????????????? | | ??? """?????????????????????????????????????????? | | ????####?????????????????????????????????????????? | | ?????????????????????????????????????????????????? | | ?????????????????????????????????????????????????? | | ?????????????????????????????????????????????????? | +----------------------------------------------------+ Best States ------------- Heat Dissipation 25 Energy Generation 15 Energy Capacity 250 Matter Stores 300 Matter Capacity 300 Sight Range 16 Terrain Scan Density 10 Core Shielding 20 Evasion (%) 40 Recoil Reduction 2 Item Schematics ----------------- None Robot Schematics ------------------ None Fabricated ------------ Nothing Alien Tech Used ----------------- None Achievements -------------- None Challenges ------------ None Game ------ Seed MachineNeutrinoBrace Manual? 0 Play Time 00:21:38 Cumulative 94.0 hours Start 2024.05.30 @ 18:48:23 End 2024.05.30 @ 19:19:41 Sessions 1 Manual Loads 0 Difficulty Rogue Special Mode None Game No. 158 Rogue 158 Adventurer 0 Explorer 0 Win Type - Total 1 Types 1/0/0/0/0/0/0/0/0 Lore% 42 Gallery% 46 Achievement% 33 Wizard Run 0 Options --------- Layout 1 ASCII 0 Keyboard 1 Movement Numpad Keybinds 0 Fullscreen 1 Font 24/Smallcaps Map View 50x35 Zoom Use 0% Tactical HUD 1 Map Filters NONE Filters NONE Steam 1 RUN: 03e85d64-ed9c-4405-815e-a0eb626406ae